fUSD/lending_fUSD_20250629
["ID","MTS","AMOUNT","RATE_DAILY","PERIOD"]
[368522611,1751195450583,-490.0,0.00027671,3]
[368522613,1751195450593,-954.67,0.00027671,3]
[368522615,1751195450602,-738.46,0.00027671,3]
[368522616,1751195450611,-490.0,0.00027671,3]
[368522619,1751195450621,-490.0,0.00027671,3]
[368522621,1751195450631,-843.616844,0.00027671,3]
[368522623,1751195450640,-1388.19,0.00027671,3]
[368522625,1751195450649,-490.0,0.00027671,3]
[368522627,1751195450658,-490.0,0.00027671,3]
[368522629,1751195450668,-490.0,0.00027671,3]
[368522630,1751195450677,-490.0,0.00027671,3]
[368522632,1751195450686,-490.0,0.00027671,3]
[368522634,1751195450695,-490.0,0.00027671,3]
[368522636,1751195450705,-490.0,0.00027671,3]
[368522639,1751195450715,-490.0,0.00027671,3]
[368522641,1751195450724,-618.02,0.00027671,3]
[368522643,1751195450733,-292.491065,0.00027671,3]
[368522645,1751195450742,-583.79986121,0.00027671,3]
[368522647,1751195450751,-729.8,0.00027671,3]
[368522649,1751195450760,-717.63,0.00027671,3]
[368522650,1751195450769,-490.0,0.00027671,3]
[368522652,1751195450778,-490.0,0.00027671,3]
[368522655,1751195450788,-509.90411002,0.00027671,3]
[368522657,1751195450797,-490.0,0.00027671,3]
[368522658,1751195450807,-490.0,0.00027671,3]
[368522661,1751195450816,-779.17,0.00027671,3]
[368522663,1751195450825,-490.49,0.00027671,3]
[368522664,1751195450834,-490.0,0.00027671,3]
[368522667,1751195450844,-490.0,0.00027671,3]
[368522669,1751195450853,-490.46,0.00027671,3]
[368522670,1751195450864,-490.0,0.00027671,3]
[368522672,1751195450873,-1183.749927,0.00027671,3]
[368522674,1751195450882,-701.72,0.00027671,3]
[368522676,1751195450891,-490.0,0.00027671,3]
[368522678,1751195450900,-490.0,0.00027671,3]
[368522680,1751195450910,-862.32,0.00027671,3]
[368522682,1751195450919,-490.0,0.00027671,3]
[368522684,1751195450928,-1237.98,0.00027671,3]
[368522686,1751195450937,-1063.67,0.00027671,3]
[368522688,1751195450946,-663.95,0.00027671,3]
[368522690,1751195450956,-490.0,0.00027671,3]
[368522692,1751195450967,-827.18,0.00027671,3]
[368522694,1751195450976,-490.0,0.00027671,3]
[368522696,1751195450987,-490.0,0.00027671,3]
[368522698,1751195450996,-490.0,0.00027671,3]
[368522700,1751195451005,-490.0,0.00027671,3]
[368522702,1751195451015,-490.0,0.00027671,3]
[368522704,1751195451024,-249.05825955,0.00027671,3]
[368522707,1751195451034,-490.0,0.00027671,3]
[368522708,1751195451043,-547.47,0.00027671,3]
[368522710,1751195451053,-823.41,0.00027671,3]
[368522712,1751195451062,-668.76,0.00027671,3]
[368522714,1751195451071,-748.67,0.00027671,3]
[368522716,1751195451081,-490.0,0.00027671,3]
[368522718,1751195451090,-490.0,0.00027671,3]
[368522721,1751195451101,-490.0,0.00027671,3]
[368522723,1751195451111,-1401.904447,0.00027671,3]
[368522725,1751195451120,-490.0,0.00027671,3]
[368522727,1751195451129,-490.0,0.00027671,3]
[368522729,1751195451139,-588.25,0.00027671,3]
[368522731,1751195451149,-490.0,0.00027671,3]
[368522733,1751195451158,-490.0,0.00027671,3]
[368522747,1751195451264,-490.0,0.00027671,3]
[368522751,1751195451311,-1344.91,0.00027671,3]
[368522753,1751195451325,-490.0,0.00027671,3]
[368522755,1751195451334,-490.0,0.00027671,3]
[368522757,1751195451345,-490.0,0.00027671,3]
[368522759,1751195451355,-688.18,0.00027671,3]
[368522761,1751195451367,-490.0,0.00027671,3]
[368522763,1751195451377,-490.0,0.00027671,3]
[368522765,1751195451387,-918.01,0.00027671,3]
[368522767,1751195451398,-490.0,0.00027671,3]
[368522769,1751195451407,-300.0,0.00027671,3]
[368522771,1751195451417,-451.52,0.00027671,3]
[368522773,1751195451426,-606.16,0.00027671,3]
[368522775,1751195451436,-490.0,0.00027671,3]
[368522777,1751195451445,-490.0,0.00027671,3]
[368522779,1751195451456,-504.36,0.00027671,3]
[368522781,1751195451465,-564.07651463,0.00027671,3]
[368522783,1751195451475,-490.0,0.00027671,3]
[368522785,1751195451485,-860.61,0.00027671,3]
[368522787,1751195451495,-490.0,0.00027671,3]
[368522789,1751195451504,-490.0,0.00027671,3]
[368522792,1751195451514,-492.65,0.00027671,3]
[368522793,1751195451525,-1029.14,0.00027671,3]
[368522795,1751195451534,-490.0,0.00027671,3]
[368522797,1751195451544,-490.95,0.00027671,3]
[368522799,1751195451553,-490.0,0.00027671,3]
[368522801,1751195451563,-490.0,0.00027671,3]
[368522803,1751195451574,-490.0,0.00027671,3]
[368522805,1751195451583,-490.0,0.00027671,3]
[368522807,1751195451592,-490.0,0.00027671,3]
[368522809,1751195451602,-490.0,0.00027671,3]
[368522811,1751195451612,-879.43,0.00027671,3]
[368522814,1751195451623,-576.42,0.00027671,3]
[368522815,1751195451633,-490.0,0.00027671,3]
[368522817,1751195451643,-490.0,0.00027671,3]
[368522819,1751195451652,-490.0,0.00027671,3]
[368522822,1751195451663,-593.25,0.00027671,3]
[368522823,1751195451672,-490.0,0.00027671,3]
[368522826,1751195451681,-490.0,0.00027671,3]
[368522827,1751195451692,-347.44156754,0.00027671,3]
[368522830,1751195451702,-537.32,0.00027671,3]
[368522831,1751195451712,-1231.36,0.00027671,3]
[368522834,1751195451721,-490.0,0.00027671,3]
[368522835,1751195451731,-1062.64,0.00027671,3]
[368522838,1751195451741,-490.0,0.00027671,3]
[368522840,1751195451750,-603.18,0.00027671,3]
[368522841,1751195451760,-587.36,0.00027671,3]
[368522844,1751195451769,-490.0,0.00027671,3]
[368522846,1751195451778,-576.03,0.00027671,3]
[368522847,1751195451788,-490.0,0.00027671,3]
[368522850,1751195451799,-330.34287351,0.00027671,3]
[368522852,1751195451808,-490.0,0.00027671,3]
[368522854,1751195451819,-618.5,0.00027671,3]
[368522856,1751195451830,-490.0,0.00027671,3]
[368522858,1751195451839,-996.14,0.00027671,3]
[368522860,1751195451849,-442.68561367,0.00027671,3]
[368522862,1751195451858,-588.38,0.00027671,3]
[368522864,1751195451867,-490.0,0.00027671,3]
[368522866,1751195451878,-559.62,0.00027671,3]
[368522868,1751195451888,-593.04,0.00027671,3]
[368522870,1751195451898,-490.0,0.00027671,3]
[368522872,1751195451908,-543.61,0.00027671,3]
[368522874,1751195451917,-594.32,0.00027671,3]
[368522876,1751195451928,-815.71,0.00027671,3]
[368522878,1751195451938,-490.0,0.00027671,3]
[368522880,1751195451947,-490.0,0.00027671,3]
[368522882,1751195451958,-490.0,0.00027671,3]
[368522884,1751195451967,-490.0,0.00027671,3]
[368522886,1751195451978,-496.77,0.00027671,3]
[368522888,1751195451987,-490.0,0.00027671,3]
[368522890,1751195451996,-490.0,0.00027671,3]
[368522892,1751195452006,-630.45,0.00027671,3]
[368522894,1751195452016,-612.62,0.00027671,3]
[368522896,1751195452027,-490.0,0.00027671,3]
[368522899,1751195452040,-490.0,0.00027671,3]
[368522901,1751195452049,-490.0,0.00027671,3]
[368522903,1751195452058,-734.99,0.00027671,3]
[368522905,1751195452067,-490.0,0.00027671,3]
[368522907,1751195452077,-941.86,0.00027671,3]
[368522908,1751195452086,-490.0,0.00027671,3]
[368522910,1751195452097,-606.81,0.00027671,3]
[368522913,1751195452108,-490.0,0.00027671,3]
[368522915,1751195452117,-490.0,0.00027671,3]
[368522917,1751195452127,-490.0,0.00027671,3]
[368522919,1751195452137,-490.0,0.00027671,3]
[368522921,1751195452147,-490.0,0.00027671,3]
[368522923,1751195452157,-490.0,0.00027671,3]
[368522925,1751195452167,-1147.39,0.00027671,3]
[368522927,1751195452177,-490.0,0.00027671,3]
[368522929,1751195452186,-490.0,0.00027671,3]
[368522931,1751195452198,-534.75,0.00027671,3]
[368522933,1751195452207,-768.88,0.00027671,3]
[368522935,1751195452217,-490.0,0.00027671,3]
[368522937,1751195452226,-501.48,0.00027671,3]
[368522939,1751195452235,-490.0,0.00027671,3]
[368522941,1751195452245,-490.0,0.00027671,3]
[368522943,1751195452254,-765.22,0.00027671,3]
[368522945,1751195452264,-490.0,0.00027671,3]
[368522947,1751195452273,-490.0,0.00027671,3]
[368522949,1751195452283,-624.11,0.00027671,3]
[368522951,1751195452293,-490.0,0.00027671,3]
[368522953,1751195452302,-490.0,0.00027671,3]
[368522955,1751195452311,-490.0,0.00027671,3]
[368522957,1751195452324,-490.0,0.00027671,3]
[368522959,1751195452334,-518.02,0.00027671,3]
[368522961,1751195452343,-490.0,0.00027671,3]
[368522963,1751195452352,-691.65,0.00027671,3]
[368522965,1751195452362,-490.0,0.00027671,3]
[368522967,1751195452371,-490.0,0.00027671,3]
[368522969,1751195452380,-490.0,0.00027671,3]
[368522971,1751195452390,-1554.34,0.00027671,3]
[368522973,1751195452400,-490.0,0.00027671,3]
[368522975,1751195452410,-536.67,0.00027671,3]
[368522977,1751195452419,-490.0,0.00027671,3]
[368522979,1751195452428,-490.0,0.00027671,3]
[368522981,1751195452437,-490.0,0.00027671,3]
[368522983,1751195452446,-490.0,0.00027671,3]
[368522985,1751195452456,-490.0,0.00027671,3]
[368522987,1751195452465,-708.27,0.00027671,3]
[368522989,1751195452476,-1504.15,0.00027671,3]
[368522991,1751195452487,-490.0,0.00027671,3]
[368522993,1751195452496,-490.0,0.00027671,3]
[368522995,1751195452506,-490.0,0.00027671,3]
[368522997,1751195452515,-490.0,0.00027671,3]
[368522999,1751195452525,-557.24,0.00027671,3]
[368523001,1751195452534,-490.0,0.00027671,3]
[368523004,1751195452544,-490.0,0.00027671,3]
[368523006,1751195452553,-490.0,0.00027671,3]
[368523008,1751195452563,-490.0,0.00027671,3]
[368523009,1751195452572,-490.0,0.00027671,3]
[368523011,1751195452581,-516.87,0.00027671,3]
[368523013,1751195452591,-490.0,0.00027671,3]
[368523015,1751195452600,-490.0,0.00027671,3]
[368523017,1751195452609,-490.0,0.00027671,3]
[368523019,1751195452619,-490.0,0.00027671,3]
[368523022,1751195452628,-490.0,0.00027671,3]
[368523023,1751195452637,-490.0,0.00027671,3]
[368523025,1751195452646,-490.0,0.00027671,3]
[368523027,1751195452655,-604.89,0.00027671,3]
[368523030,1751195452666,-490.0,0.00027671,3]
[368523032,1751195452675,-490.0,0.00027671,3]
[368523034,1751195452685,-1638.76,0.00027671,3]
[368523036,1751195452694,-490.0,0.00027671,3]
[368523037,1751195452703,-490.0,0.00027671,3]
[368523040,1751195452713,-490.0,0.00027671,3]
[368523042,1751195452723,-490.0,0.00027671,3]
[368523044,1751195452732,-590.89,0.00027671,3]
[368523046,1751195452742,-490.0,0.00027671,3]
[368523048,1751195452751,-1217.95,0.00027671,3]
[368523050,1751195452760,-490.0,0.00027671,3]
[368523052,1751195452768,-490.0,0.00027671,3]
[368523054,1751195452778,-528.4,0.00027671,3]
[368523055,1751195452787,-498.25,0.00027671,3]
[368523056,1751195452796,-490.0,0.00027671,3]
[368523057,1751195452805,-1047.55,0.00027671,3]
[368523058,1751195452814,-932.64,0.00027671,3]
[368523059,1751195452823,-1535.93,0.00027671,3]
[368523060,1751195452832,-490.0,0.00027671,3]
[368523061,1751195452841,-1410.37,0.00027671,3]
[368523062,1751195452850,-857.63,0.00027671,3]
[368523063,1751195452858,-490.0,0.00027671,3]
[368523064,1751195452867,-331.35630721,0.00027671,3]
[368523065,1751195452876,-490.0,0.00027671,3]
[368523066,1751195452885,-490.0,0.00027671,3]
[368523067,1751195452894,-493.91070631,0.00027671,3]
[368523068,1751195452903,-764.97,0.00027671,3]
[368523070,1751195452913,-490.0,0.00027671,3]
[368523072,1751195452923,-490.0,0.00027671,3]
[368523074,1751195452932,-1226.51,0.00027671,3]
[368523076,1751195452942,-490.0,0.00027671,3]
[368523078,1751195452951,-719.95,0.00027671,3]
[368523080,1751195452961,-166.78468519,0.00027671,3]
[368523082,1751195452971,-979.74,0.00027671,3]
[368523084,1751195452980,-991.19,0.00027671,3]
[368523087,1751195452989,-490.0,0.00027671,3]
[368523089,1751195452999,-490.0,0.00027671,3]
[368523091,1751195453008,-892.18,0.00027671,3]
[368523093,1751195453019,-490.0,0.00027671,3]
[368523094,1751195453028,-490.0,0.00027671,3]
[368523096,1751195453037,-490.0,0.00027671,3]
[368523098,1751195453046,-523.71,0.00027671,3]
[368523100,1751195453055,-490.0,0.00027671,3]
[368523102,1751195453064,-490.0,0.00027671,3]
[368523104,1751195453074,-490.0,0.00027671,3]
[368523106,1751195453083,-490.0,0.00027671,3]
[368523108,1751195453093,-490.0,0.00027671,3]
[368523110,1751195453104,-1618.13,0.00027671,3]
[368523112,1751195453113,-490.0,0.00027671,3]
[368523114,1751195453122,-1261.23,0.00027671,3]
[368523116,1751195453132,-662.39,0.00027671,3]
[368523118,1751195453141,-533.43,0.00027671,3]
[368523120,1751195453151,-601.87467995,0.00027671,3]
[368523122,1751195453160,-490.0,0.00027671,3]
[368523124,1751195453169,-490.0,0.00027671,3]
[368523126,1751195453179,-490.0,0.00027671,3]
[368523128,1751195453188,-851.98,0.00027671,3]
[368523130,1751195453198,-3244.07,0.00027671,3]
[368523132,1751195453207,-490.0,0.00027671,3]
[368523134,1751195453217,-490.0,0.00027671,3]
[368523136,1751195453227,-490.0,0.00027671,3]
[368523138,1751195453237,-490.0,0.00027671,3]
[368523140,1751195453247,-490.0,0.00027671,3]
[368523142,1751195453256,-490.0,0.00027671,3]
[368523145,1751195453266,-490.0,0.00027671,3]
[368523147,1751195453276,-643.65,0.00027671,3]
[368523149,1751195453285,-650.15,0.00027671,3]
[368523151,1751195453295,-588.08,0.00027671,3]
[368523153,1751195453304,-793.06,0.00027671,3]
[368523155,1751195453313,-1494.92,0.00027671,3]
[368523157,1751195453327,-11062.2,0.00027671,3]
[368523159,1751195453337,-650.49,0.00027671,3]
[368523161,1751195453346,-490.0,0.00027671,3]
[368523163,1751195453355,-992.98,0.00027671,3]
[368523165,1751195453366,-490.0,0.00027671,3]
[368523167,1751195453376,-1369.42,0.00027671,3]
[368523169,1751195453385,-490.0,0.00027671,3]
[368523171,1751195453395,-490.0,0.00027671,3]
[368523173,1751195453404,-490.0,0.00027671,3]
[368523175,1751195453413,-490.0,0.00027671,3]
[368523177,1751195453422,-490.0,0.00027671,3]
[368523179,1751195453431,-2865.08,0.00027671,3]
[368523213,1751195453735,-490.0,0.00027671,3]
[368523215,1751195453745,-490.0,0.00027671,3]
[368523217,1751195453754,-490.0,0.00027671,3]
[368523219,1751195453764,-1255.19,0.00027671,3]
[368523221,1751195453773,-1048.51,0.00027671,3]
[368523223,1751195453782,-895.06,0.00027671,3]
[368523225,1751195453791,-490.0,0.00027671,3]
[368523227,1751195453800,-490.0,0.00027671,3]
[368523229,1751195453810,-1140.15,0.00027671,3]
[368523231,1751195453819,-1475.7,0.00027671,3]
[368523233,1751195453827,-1098.84,0.00027671,3]
[368523235,1751195453836,-689.9,0.00027671,3]
[368523237,1751195453845,-490.0,0.00027671,3]
[368523239,1751195453854,-569.79976372,0.00027671,3]
[368523241,1751195453865,-490.0,0.00027671,3]
[368523243,1751195453875,-509.89,0.00027671,3]
[368523245,1751195453884,-846.61,0.00027671,3]
[368523247,1751195453893,-490.0,0.00027671,3]
[368523249,1751195453902,-800.75,0.00027671,3]
[368523251,1751195453911,-490.0,0.00027671,3]
[368523253,1751195453920,-490.0,0.00027671,3]
[368523255,1751195453929,-1724.34,0.00027671,3]
[368523257,1751195453939,-490.0,0.00027671,3]
[368523259,1751195453948,-490.0,0.00027671,3]
[368523261,1751195453957,-839.61,0.00027671,3]
[368523263,1751195453966,-490.0,0.00027671,3]
[368523265,1751195453976,-490.0,0.00027671,3]
[368523267,1751195453986,-1838.21,0.00027671,3]
[368523269,1751195453995,-490.0,0.00027671,3]
[368523271,1751195454005,-1420.15,0.00027671,3]
[368523273,1751195454015,-490.0,0.00027671,3]
[368523275,1751195454024,-511.65,0.00027671,3]
[368523277,1751195454034,-490.0,0.00027671,3]
[368523279,1751195454043,-1365.53,0.00027671,3]
[368523281,1751195454052,-738.89,0.00027671,3]
[368523283,1751195454061,-490.0,0.00027671,3]
[368523285,1751195454071,-1126.33,0.00027671,3]
[368523286,1751195454080,-490.0,0.00027671,3]
[368523288,1751195454090,-753.94,0.00027671,3]
[368523290,1751195454099,-4179.4,0.00027671,3]
[368523291,1751195454109,-490.0,0.00027671,3]
[368523293,1751195454119,-2082.18,0.00027671,3]
[368523295,1751195454129,-490.0,0.00027671,3]
[368523296,1751195454139,-3115.11,0.00027671,3]
[368523298,1751195454148,-490.0,0.00027671,3]
[368523300,1751195454158,-576.65294248,0.00027671,3]
[368523301,1751195454167,-1049.11,0.00027671,3]
[368523303,1751195454177,-807.19,0.00027671,3]
[368523305,1751195454187,-740.57,0.00027671,3]
[368523307,1751195454197,-490.0,0.00027671,3]
[368523308,1751195454206,-490.0,0.00027671,3]
[368523310,1751195454216,-490.0,0.00027671,3]
[368523312,1751195454225,-1044.97,0.00027671,3]
[368523313,1751195454235,-1018.69,0.00027671,3]
[368523315,1751195454244,-1329.73,0.00027671,3]
[368523317,1751195454254,-490.0,0.00027671,3]
[368523319,1751195454262,-664.26,0.00027671,3]
[368523320,1751195454272,-765.79,0.00027671,3]
[368523322,1751195454281,-490.0,0.00027671,3]
[368523324,1751195454290,-1231.21,0.00027671,3]
[368523325,1751195454300,-5898.08,0.00027671,3]
[368523327,1751195454310,-1354.66,0.00027671,3]
[368523329,1751195454322,-526.4820458,0.00027671,3]
[368523331,1751195454332,-801.57,0.00027671,3]
[368523332,1751195454341,-678.52,0.00027671,3]
[368523334,1751195454351,-490.0,0.00027671,3]
[368523336,1751195454362,-490.0,0.00027671,3]
[368523337,1751195454371,-490.0,0.00027671,3]
[368523339,1751195454381,-490.0,0.00027671,3]
[368523341,1751195454390,-728.11,0.00027671,3]
[368523342,1751195454400,-490.0,0.00027671,3]
[368523344,1751195454411,-490.0,0.00027671,3]
[368523346,1751195454421,-853.69,0.00027671,3]
[368523348,1751195454430,-2091.4,0.00027671,3]
[368523350,1751195454439,-1560.41,0.00027671,3]
[368523351,1751195454449,-490.0,0.00027671,3]
[368523353,1751195454458,-898.14,0.00027671,3]
[368523355,1751195454467,-490.0,0.00027671,3]
[368523357,1751195454477,-490.0,0.00027671,3]
[368523358,1751195454487,-490.0,0.00027671,3]
[368523360,1751195454497,-418.61767917,0.00027671,3]
[368523362,1751195454506,-490.0,0.00027671,3]
[368523364,1751195454516,-490.0,0.00027671,3]
[368523366,1751195454525,-751.28,0.00027671,3]
[368523367,1751195454534,-1923.3,0.00027671,3]
[368523369,1751195454544,-1248.49,0.00027671,3]
[368523371,1751195454554,-824.08,0.00027671,3]
[368523373,1751195454563,-490.0,0.00027671,3]
[368523375,1751195454572,-836.36,0.00027671,3]
[368523376,1751195454581,-2818.09,0.00027671,3]
[368523378,1751195454591,-2281.84,0.00027671,3]
[368523380,1751195454600,-1208.52,0.00027671,3]
[368523382,1751195454609,-490.0,0.00027671,3]
[368523384,1751195454619,-490.0,0.00027671,3]
[368523385,1751195454628,-1308.74,0.00027671,3]
[368523387,1751195454638,-812.38,0.00027671,3]
[368523389,1751195454647,-490.0,0.00027671,3]
[368523391,1751195454656,-490.0,0.00027671,3]
[368523393,1751195454665,-965.91,0.00027671,3]
[368523394,1751195454675,-1092.36,0.00027671,3]
[368523396,1751195454684,-2507.76,0.00027671,3]
[368523398,1751195454693,-490.0,0.00027671,3]
[368523400,1751195454702,-490.0,0.00027671,3]
[368523402,1751195454712,-1392.28,0.00027671,3]
[368523403,1751195454721,-545.7,0.00027671,3]
[368523405,1751195454730,-756.84,0.00027671,3]
[368523407,1751195454740,-973.2,0.00027671,3]
[368523409,1751195454749,-490.0,0.00027671,3]
[368523411,1751195454758,-490.0,0.00027671,3]
[368523413,1751195454768,-686.34,0.00027671,3]
[368523414,1751195454777,-490.0,0.00027671,3]
[368523416,1751195454786,-1668.27,0.00027671,3]
[368523418,1751195454796,-6899.51,0.00027671,3]
[368523420,1751195454805,-875.0,0.00027671,3]
[368523422,1751195454814,-490.0,0.00027671,3]
[368523423,1751195454823,-490.0,0.00027671,3]
[368523425,1751195454832,-1310.27,0.00027671,3]
[368523427,1751195454842,-550.14,0.00027671,3]
[368523429,1751195454851,-678.08,0.00027671,3]
[368523431,1751195454860,-1492.54,0.00027671,3]
[368523432,1751195454869,-598.31,0.00027671,3]
[368523434,1751195454881,-490.0,0.00027671,3]
[368523436,1751195454890,-490.0,0.00027671,3]
[368523438,1751195454899,-678.33,0.00027671,3]
[368523439,1751195454909,-1285.64,0.00027671,3]
[368523441,1751195454918,-1183.52,0.00027671,3]
[368523443,1751195454927,-2084.42,0.00027671,3]
[368523445,1751195454936,-2071.23,0.00027671,3]
[368523447,1751195454945,-1111.98,0.00027671,3]
[368523448,1751195454955,-490.0,0.00027671,3]
[368523450,1751195454964,-2149.28,0.00027671,3]
[368523452,1751195454974,-1343.62,0.00027671,3]
[368523454,1751195454983,-1189.09,0.00027671,3]
[368523456,1751195454993,-624.68,0.00027671,3]
[368523457,1751195455002,-490.0,0.00027671,3]
[368523459,1751195455012,-490.0,0.00027671,3]
[368523461,1751195455021,-1713.38,0.00027671,3]
[368523463,1751195455032,-728.39,0.00027671,3]
[368523465,1751195455041,-490.0,0.00027671,3]
[368523467,1751195455050,-490.0,0.00027671,3]
[368523468,1751195455060,-1929.28,0.00027671,3]
[368523470,1751195455069,-490.0,0.00027671,3]
[368523472,1751195455080,-716.65,0.00027671,3]
[368523474,1751195455088,-490.0,0.00027671,3]
[368523476,1751195455098,-1448.19,0.00027671,3]
[368523477,1751195455107,-490.0,0.00027671,3]
[368523479,1751195455117,-950.17,0.00027671,3]
[368523481,1751195455127,-4228.03,0.00027671,3]
[368523483,1751195455137,-1415.52,0.00027671,3]
[368523485,1751195455147,-578.07,0.00027671,3]
[368523486,1751195455156,-1294.67,0.00027671,3]
[368523488,1751195455166,-2873.11,0.00027671,3]
[368523490,1751195455175,-2568.99,0.00027671,3]
[368523492,1751195455184,-490.0,0.00027671,3]
[368523494,1751195455193,-490.0,0.00027671,3]
[368523495,1751195455203,-490.0,0.00027671,3]
[368523497,1751195455213,-490.0,0.00027671,3]
[368523499,1751195455222,-490.0,0.00027671,3]
[368523501,1751195455232,-1298.15,0.00027671,3]
[368523503,1751195455241,-490.0,0.00027671,3]
[368523505,1751195455251,-3934.62,0.00027671,3]
[368523506,1751195455260,-871.69,0.00027671,3]
[368523508,1751195455270,-490.0,0.00027671,3]
[368523510,1751195455279,-490.0,0.00027671,3]
[368523512,1751195455288,-151.29791538,0.00027671,3]
[368523514,1751195455297,-150.0,0.00027671,3]
[368523515,1751195455306,-1156.17,0.00027671,3]
[368523517,1751195455316,-490.0,0.00027671,3]
[368523519,1751195455327,-490.0,0.00027671,3]
[368523521,1751195455337,-490.0,0.00027671,3]
[368523523,1751195455346,-492.20171658,0.00027671,3]
[368523524,1751195455356,-490.0,0.00027671,3]
[368523526,1751195455366,-490.0,0.00027671,3]
[368523528,1751195455375,-1135.44,0.00027671,3]
[368523530,1751195455385,-490.0,0.00027671,3]
[368523532,1751195455394,-5438.07,0.00027671,3]
[368523533,1751195455404,-490.0,0.00027671,3]
[368523536,1751195455414,-3395.49,0.00027671,3]
[368523537,1751195455423,-2131.93,0.00027671,3]
[368523540,1751195455433,-490.0,0.00027671,3]
[368523542,1751195455442,-595.7,0.00027671,3]
[368523544,1751195455451,-490.0,0.00027671,3]
[368523546,1751195455462,-1160.67,0.00027671,3]
[368523548,1751195455471,-490.0,0.00027671,3]
[368523550,1751195455480,-490.0,0.00027671,3]
[368523551,1751195455490,-490.0,0.00027671,3]
[368523553,1751195455503,-490.0,0.00027671,3]
[368523555,1751195455514,-1082.12,0.00027671,3]
[368523557,1751195455524,-1291.41,0.00027671,3]
[368523559,1751195455533,-3297.43,0.00027671,3]
[368523561,1751195455542,-1219.38,0.00027671,3]
[368523562,1751195455551,-490.0,0.00027671,3]
[368523563,1751195455560,-1351.77,0.00027671,3]
[368523564,1751195455569,-1046.99,0.00027671,3]
[368523565,1751195455578,-490.0,0.00027671,3]
[368523566,1751195455587,-874.34,0.00027671,3]
[368523567,1751195455595,-490.0,0.00027671,3]
[368523568,1751195455605,-490.0,0.00027671,3]
[368523569,1751195455614,-490.0,0.00027671,3]
[368523570,1751195455623,-490.0,0.00027671,3]
[368523571,1751195455632,-1084.91,0.00027671,3]
[368523572,1751195455641,-1243.77,0.00027671,3]
[368523573,1751195455651,-490.0,0.00027671,3]
[368523574,1751195455660,-2069.3,0.00027671,3]
[368523575,1751195455669,-523.8,0.00027671,3]
[368523576,1751195455679,-664.94,0.00027671,3]
[368523577,1751195455692,-490.0,0.00027671,3]
[368523578,1751195455702,-1431.47,0.00027671,3]
[368523579,1751195455712,-490.0,0.00027671,3]
[368523580,1751195455721,-1230.19,0.00027671,3]
[368523581,1751195455731,-490.0,0.00027671,3]
[368523582,1751195455740,-6887.93,0.00027671,3]
[368523584,1751195455749,-1307.69,0.00027671,3]
[368523585,1751195455759,-490.0,0.00027671,3]
[368523586,1751195455769,-2182.43,0.00027671,3]
[368523588,1751195455778,-15438.68,0.00027671,3]
[368523590,1751195455788,-836.9,0.00027671,3]